Workbook

Sheet РТ
B1: Примерное двухнедельное меню для учащихся с 7 до 11 лет в общеобразовательных организациях Агрызского района в 2020 - 2021 уч.году
A5: Наименование блюд | F5: Выход | G5: Белки, г | H5: Жиры, г | I5: Углеводы, г | J5: Калорийность, ккал | K5: Витамин B1, мг | L5: Витамин С, мг | M5: Витамин А, мг | N5: Витамин Е, мг | O5: Ca, мг | P5: P, мг | Q5: Mg, мг | R5: Fe, мг
A6: 1-ая неделя
A7: 1 день
A8: ПОМИДОРЫ СВЕЖИЕ | F8: 60 | G8: 0.660 | H8: 0.120 | I8: 2.280 | J8: 14 | K8: 0.036 | L8: 15.000 | M8: 0 | N8: 0.420 | O8: 8.400 | P8: 15.600 | Q8: 12.000 | R8: 0.540
A9: КОТЛЕТЫ (БИТОЧКИ,ШНИЦЕЛИ) РУБЛЕННЫЕ ИЗ ГОВЯДИНЫ | F9: 80 | G9: 8.200 | H9: 9.900 | I9: 10.210 | J9: 151 | K9: 0.050 | L9: 0.050 | M9: 2.080 | N9: 2.510 | O9: 27.800 | P9: 112.100 | Q9: 22.100 | R9: 1.150
A10: КАША ГРЕЧНЕВАЯ РАССЫПЧАТАЯ С МАСЛОМ | F10: 150/5 | G10: 3.600 | H10: 7.000 | I10: 29.000 | J10: 193 | K10: 0.292 | L10: 0 | M10: 41.000 | N10: 0.518 | O10: 27.352 | P10: 180.553 | Q10: 104.550 | R10: 3.501
A11: КАКАО С МОЛОКОМ | F11: 200 | G11: 4.200 | H11: 3.600 | I11: 17.280 | J11: 119 | K11: 0.050 | L11: 1.600 | M11: 0.03 | N11: 0.000 | O11: 152.900 | P11: 128.000 | Q11: 22.300 | R11: 0.550
A12: ХЛЕБ СЕЛЬСКИЙ 1 сорт | F12: 20 | G12: 1.3 | H12: 0.2 | I12: 7 | J12: 35 | K12: 0.02 | L12: 0 | M12: 0 | N12: 0.2 | O12: 4.7 | P12: 21.1 | Q12: 6.3 | R12: 0.52
A13: ХЛЕБ БЕЛЫЙ 1 сорт | F13: 30 | G13: 2.280 | H13: 0.240 | I13: 14.760 | J13: 71 | K13: 0.033 | L13: 0 | M13: - | N13: 0.330 | O13: 6.000 | P13: 19.500 | Q13: 4.200 | R13: 0.330
A14: Итого: | G14: =SUM(G8:G13) -> 20.240 | H14: 21.060 | I14: 80.530 | J14: 582.600 | K14: 0.481 | L14: 16.650 | M14: 43.110 | N14: 3.978 | O14: 227.152 | P14: 476.853 | Q14: 171.450 | R14: 6.591
A15: 2 день
A16: ФРУКТЫ (ЯБЛОКИ) | F16: 110 | G16: 0.330 | H16: 0.440 | I16: 9.460 | J16: 44 | K16: 0.033 | L16: 11.000 | M16: - | N16: 0.220 | O16: 17.600 | P16: 12.100 | Q16: 9.900 | R16: 2.420
A17: ОГУРЦЫ СВЕЖИЕ | F17: 60 | G17: 0.420 | H17: 0.060 | I17: 1.140 | J17: 7 | K17: 0.018 | L17: 4.200 | M17: 0 | N17: 0.060 | O17: 10.200 | P17: 18.000 | Q17: 8.400 | R17: 0.300
A18: ПЛОВ ИЗ ПТИЦЫ | F18: 210 | G18: 21.470 | H18: 19.690 | I18: 35.690 | J18: 406 | K18: 0.260 | L18: 1.010 | M18: 0.060 | N18: 0.000 | O18: 40.300 | P18: 209.500 | Q18: 46.800 | R18: 2.030
A19: КОФЕЙНЫЙ НАПИТОК С МОЛОКОМ | F19: 200 | G19: 3.120 | H19: 2.600 | I19: 14.170 | J19: 93 | K19: 0 | L19: 1.300 | M19: 0.01 | N19: 0 | O19: 125.700 | P19: 90.000 | Q19: 14.000 | R19: 0.130
A20: ХЛЕБ СЕЛЬСКИЙ 1 сорт | F20: 20 | G20: 1.3 | H20: 0.2 | I20: 7 | J20: 35 | K20: 0.02 | L20: 0 | M20: 0 | N20: 0.2 | O20: 4.7 | P20: 21.1 | Q20: 6.3 | R20: 0.52
A21: ХЛЕБ БЕЛЫЙ 1 сорт | F21: 30 | G21: 2.280 | H21: 0.240 | I21: 14.760 | J21: 71 | K21: 0.033 | L21: - | M21: - | N21: 0.330 | O21: 6.000 | P21: 19.500 | Q21: 4.200 | R21: 0.330
A22: Итого: | G22: =SUM(G16:G21) -> 28.92 | H22: 23.23 | I22: 82.22 | J22: 656.30 | K22: 0.40 | L22: 17.51 | M22: 0.07 | N22: 0.81 | O22: 204.50 | P22: 370.20 | Q22: 89.60 | R22: 5.73
A23: 3 день
A24: САЛАТ ИЗ БЕЛОКОЧАННОЙ КАПУСТЫ | F24: 100 | G24: 1.400 | H24: 5.000 | I24: 9.000 | J24: 87 | K24: 0.020 | L24: 32.400 | M24: - | N24: 0.000 | O24: 37.300 | P24: 27.600 | Q24: 15.100 | R24: 0.500
A25: ГУЛЯШ ИЗ ГОВЯДИНЫ | F25: 50/50 | G25: 12.850 | H25: 10.340 | I25: 3.300 | J25: 158 | K25: 0.030 | L25: 4.680 | M25: 0.01 | N25: 0.000 | O25: 24.300 | P25: 103.500 | Q25: 22.600 | R25: 0.960
A26: МАКАРОНЫ ОТВАРНЫЕ | F26: 150 | G26: 5.652 | H26: 4.469 | I26: 28.000 | J26: 175 | K26: 0.087 | L26: - | M26: 21.000 | N26: 0.818 | O26: 16.470 | P26: 47.070 | Q26: 8.490 | R26: 0.870
A27: ЧАЙ С САХАРОМ | F27: 200/15 | G27: 0.200 | I27: 13.70 | J27: 56 | K27: 0.008 | L27: 3.750 | M27: - | N27: 0.075 | O27: 9.970 | P27: 7.500 | Q27: 6.500 | R27: 0.197
A28: ХЛЕБ СЕЛЬСКИЙ 1 сорт | F28: 20 | G28: 1.3 | H28: 0.2 | I28: 7 | J28: 35 | K28: 0.02 | L28: 0 | M28: 0 | N28: 0.2 | O28: 4.7 | P28: 21.1 | Q28: 6.3 | R28: 0.52
A29: ХЛЕБ БЕЛЫЙ 1 сорт | F29: 30 | G29: 2.280 | H29: 0.240 | I29: 14.760 | J29: 71 | K29: 0.033 | L29: - | M29: - | N29: 0.330 | O29: 6.000 | P29: 19.500 | Q29: 4.200 | R29: 0.330
A30: Итого: | G30: =SUM(G24:G29) -> 23.682 | H30: 20.249 | I30: 75.760 | J30: 581.900 | K30: 0.198 | L30: 40.830 | M30: 21.010 | N30: 1.423 | O30: 98.740 | P30: 226.270 | Q30: 63.190 | R30: 3.377
A31: 4 день
A32: ФРУКТЫ (ГРУШИ) | F32: 100 | G32: 0.400 | H32: 0.300 | I32: 10.300 | J32: 47 | K32: 0.020 | L32: 5.000 | M32: - | N32: 0.400 | O32: 19.000 | P32: 16.000 | Q32: 12.000 | R32: 2.300
A33: САЛАТ ИЗ МОРКОВИ | F33: 100 | G33: 1.250 | H33: 0.090 | I33: 11.600 | J33: 52 | K33: 0.058 | L33: 4.800 | M33: 0 | N33: 0.000 | O33: 13.302 | P33: 26.850 | Q33: 18.468 | R33: 0.358
A34: ШНИЦЕЛЬ РЫБНЫЙ НАТУРАЛЬНЫЙ | F34: 80 | G34: 12.080 | H34: 3.920 | I34: 8.210 | J34: 116 | K34: 0.080 | L34: 2.620 | M34: 0.010 | N34: 0.000 | O34: 38.900 | P34: 164.600 | Q34: 28.900 | R34: 0.870
A35: ПЮРЕ КАРТОФЕЛЬНОЕ | F35: 150 | G35: 3.060 | H35: 4.800 | I35: 20.400 | J35: 137 | K35: 0.120 | L35: 18.160 | M35: 0.030 | N35: 0.100 | O35: 36.970 | P35: 86.600 | Q35: 27.750 | R35: 1.000
A36: КАКАО С МОЛОКОМ | F36: 200 | G36: 4.200 | H36: 3.600 | I36: 17.280 | J36: 119 | K36: 0.050 | L36: 1.600 | M36: 0.03 | N36: 0.000 | O36: 152.900 | P36: 128.000 | Q36: 22.300 | R36: 0.550
A37: ХЛЕБ СЕЛЬСКИЙ 1 сорт | F37: 20 | G37: 1.3 | H37: 0.2 | I37: 7 | J37: 35 | K37: 0.02 | L37: 0 | M37: 0 | N37: 0.2 | O37: 4.7 | P37: 21.1 | Q37: 6.3 | R37: 0.52
A38: ХЛЕБ БЕЛЫЙ 1 сорт | F38: 30 | G38: 2.280 | H38: 0.240 | I38: 14.760 | J38: 71 | K38: 0.033 | L38: - | M38: - | N38: 0.330 | O38: 6.000 | P38: 19.500 | Q38: 4.200 | R38: 0.330
A39: Итого: | G39: =SUM(G32:G38) -> 24.570 | H39: 13.150 | I39: 89.550 | J39: 577.150 | K39: 0.381 | L39: 32.180 | M39: 0.070 | N39: 1.030 | O39: 271.772 | P39: 462.650 | Q39: 119.918 | R39: 5.928
A40: 5 день
A41: ФРУКТЫ (ЯБЛОКИ) | F41: 110 | G41: 0.330 | H41: 0.440 | I41: 9.460 | J41: 44 | K41: 0.033 | L41: 11.000 | M41: - | N41: 0.220 | O41: 17.600 | P41: 12.100 | Q41: 9.900 | R41: 2.420
A42: ПОМИДОРЫ СВЕЖИЕ | F42: 60 | G42: 0.660 | H42: 0.120 | I42: 2.280 | J42: 14 | K42: 0.036 | L42: 15.000 | M42: 0 | N42: 0.420 | O42: 8.400 | P42: 15.600 | Q42: 12.000 | R42: 0.540
A43: КОТЛЕТЫ РУБЛЕННЫЕ ИЗ ПТИЦЫ | F43: 80 | G43: 12.640 | H43: 13.140 | I43: 13.460 | J43: 223 | K43: 0.080 | L43: 0.670 | M43: 0.050 | N43: 0.000 | O43: 35.100 | P43: 127.800 | Q43: 21.000 | R43: 1.470
A44: РИС ОТВАРНОЙ | F44: 150 | G44: 3.650 | H44: 5.370 | I44: 36.680 | J44: 210 | K44: 0.025 | L44: 0 | M44: 0.021 | N44: 0.000 | O44: 1.360 | P44: 60.600 | Q44: 19.000 | R44: 0.530
A45: ЧАЙ С ЛИМОНОМ | F45: 200/15/7 | G45: 0.100 | H45: 0.100 | I45: 13.900 | J45: 57 | K45: 0.000 | L45: 1.120 | M45: 0 | N45: 0.010 | O45: 2.860 | P45: 1.340 | Q45: 0.730 | R45: 0.080
A46: ХЛЕБ СЕЛЬСКИЙ 1 сорт | F46: 20 | G46: 1.3 | H46: 0.2 | I46: 7 | J46: 35 | K46: 0.02 | L46: 0 | M46: 0 | N46: 0.2 | O46: 4.7 | P46: 21.1 | Q46: 6.3 | R46: 0.52
A47: ХЛЕБ БЕЛЫЙ 1 сорт | F47: 30 | G47: 2.280 | H47: 0.240 | I47: 14.760 | J47: 71 | K47: 0.033 | L47: - | M47: - | N47: 0.330 | O47: 6.000 | P47: 19.500 | Q47: 4.200 | R47: 0.330
A48: Итого: | G48: =SUM(G41:G47) -> 20.960 | H48: 19.610 | I48: 97.540 | J48: 653.700 | K48: 0.227 | L48: 27.790 | M48: 0.071 | N48: 1.180 | O48: 76.020 | P48: 258.040 | Q48: 73.130 | R48: 5.890
A49: 6 день
A50: ФРУКТЫ (МАНДАРИНЫ) | F50: 100 | G50: 0.500 | H50: 0.200 | I50: 7.500 | J50: 34 | K50: 0.030 | L50: 10.000 | M50: 0 | N50: 0.200 | O50: 16.000 | P50: 11.000 | Q50: 9.000 | R50: 2.200
A51: САЛАТ ИЖ СВЕЖИХ ОГУРЦОВ С МАСЛОМ | F51: 60 | G51: 0.456 | H51: 3.650 | I51: 1.420 | J51: 40 | K51: 0.017 | L51: 5.700 | M51: 0 | N51: 0.000 | O51: 13.110 | P51: 24.580 | Q51: 7.980 | R51: 0.342
A52: КОТЛЕТЫ (БИТОЧКИ,ШНИЦЕЛИ) РУБЛЕННЫЕ ИЗ ГОВЯДИНЫ | F52: 80 | G52: 8.200 | H52: 9.900 | I52: 10.210 | J52: 151 | K52: 0.050 | L52: 0.050 | M52: 2.080 | N52: 2.510 | O52: 27.800 | P52: 112.100 | Q52: 22.100 | R52: 1.150
A53: МАКАРОНЫ ОТВАРНЫЕ | F53: 150 | G53: 5.652 | H53: 4.469 | I53: 28.000 | J53: 175 | K53: 0.087 | L53: - | M53: 21.000 | N53: 0.818 | O53: 16.470 | P53: 47.070 | Q53: 8.490 | R53: 0.870
A54: ЧАЙ С САХАРОМ | F54: 200/15 | G54: 0.200 | I54: 13.70 | J54: 56 | K54: 0.008 | L54: 3.750 | M54: - | N54: 0.075 | O54: 9.970 | P54: 7.500 | Q54: 6.500 | R54: 0.197
A55: ХЛЕБ СЕЛЬСКИЙ 1 сорт | F55: 20 | G55: 1.3 | H55: 0.2 | I55: 7 | J55: 35 | K55: 0.02 | L55: 0 | M55: 0 | N55: 0.2 | O55: 4.7 | P55: 21.1 | Q55: 6.3 | R55: 0.52
A56: ХЛЕБ БЕЛЫЙ 1 сорт | F56: 30 | G56: 2.280 | H56: 0.240 | I56: 14.760 | J56: 71 | K56: 0.033 | L56: - | M56: - | N56: 0.330 | O56: 6.000 | P56: 19.500 | Q56: 4.200 | R56: 0.330
A57: Итого: | G57: =SUM(G50:G56) -> 18.588 | H57: 18.659 | I57: 82.590 | J57: 562.380 | K57: 0.245 | L57: 19.500 | M57: 23.080 | N57: 4.133 | O57: 94.050 | P57: 242.850 | Q57: 64.570 | R57: 5.609
A62: Наименование блюд | F62: Выход | G62: Белки, г | H62: Жиры, г | I62: Углеводы, г | J62: Калорийность, ккал | K62: Витамин B1, мг | L62: Витамин С, мг | M62: Витамин А, мг | N62: Витамин Е, мг | O62: Ca, мг | P62: P, мг | Q62: Mg, мг | R62: Fe, мг
A63: 2-ая неделя
A64: 1 день
A65: ФРУКТЫ (АПЕЛЬСИНЫ) | F65: 150 | G65: 1.350 | H65: 0.300 | I65: 12.150 | J65: 57 | K65: 0.060 | L65: 90.000 | N65: 0.300 | O65: 51.000 | P65: 34.500 | Q65: 19.500 | R65: 0.450
A66: ОГУРЦЫ СВЕЖИЕ | F66: 60 | G66: 0.420 | H66: 0.060 | I66: 1.140 | J66: 7 | K66: 0.018 | L66: 4.200 | M66: 0 | N66: 0.060 | O66: 10.200 | P66: 18.000 | Q66: 8.400 | R66: 0.300
A67: МЯСО ТУШЕНОЕ | F67: 100 | G67: 12.000 | H67: 15.000 | I67: 3.000 | J67: 215 | K67: 0.000 | L67: 1.000 | M67: 42 | N67: 0.000 | O67: 12.000 | P67: 176.000 | Q67: 17.000 | R67: 2.000
A68: КАША ГРЕЧНЕВАЯ РАССЫПЧАТАЯ С МАСЛОМ | F68: 150/5 | G68: 3.600 | H68: 7.000 | I68: 29.000 | J68: 193 | K68: 0.292 | L68: 0 | M68: 41.000 | N68: 0.518 | O68: 27.352 | P68: 180.553 | Q68: 104.550 | R68: 3.501
A69: КАКАО С МОЛОКОМ | F69: 200 | G69: 4.200 | H69: 3.600 | I69: 17.280 | J69: 119 | K69: 0.050 | L69: 1.600 | M69: 0.03 | N69: 0.000 | O69: 152.900 | P69: 128.000 | Q69: 22.300 | R69: 0.550
A70: ХЛЕБ БЕЛЫЙ 1 сорт | F70: 30 | G70: 2.280 | H70: 0.240 | I70: 14.760 | J70: 71 | K70: 0.033 | L70: 1.600 | M70: 0.03 | N70: 0.000 | O70: 6.000 | P70: 19.500 | Q70: 4.200 | R70: 0.330
A71: ХЛЕБ СЕЛЬСКИЙ | F71: 20 | G71: 1.3 | H71: 0.2 | I71: 7 | J71: 35 | K71: 0.02 | L71: 0 | M71: 0 | N71: 0.2 | O71: 4.7 | P71: 21.1 | Q71: 6.3 | R71: 0.52
A72: Итого: | G72: =SUM(G65:G71) -> 25.150 | H72: 26.400 | I72: 84.330 | J72: 696.600 | K72: 0.473 | L72: 98.400 | M72: 83.060 | N72: 1.078 | O72: 264.152 | P72: 577.653 | Q72: 182.250 | R72: 7.651
A73: 2 день
A74: ПОМИДОРЫ СВЕЖИЕ | F74: 60 | G74: 0.660 | H74: 0.120 | I74: 2.280 | J74: 14 | K74: 0.036 | L74: 15.000 | M74: 0 | N74: 0.420 | O74: 8.400 | P74: 15.600 | Q74: 12.000 | R74: 0.540
A75: ПЛОВ ИЗ ПТИЦЫ | F75: 210 | G75: 21.470 | H75: 19.690 | I75: 35.690 | J75: 406 | K75: 0.260 | L75: 1.010 | M75: 0.060 | N75: 0.000 | O75: 40.300 | P75: 209.500 | Q75: 46.800 | R75: 2.030
A76: ЧАЙ С ЛИМОНОМ | F76: 200/15/7 | G76: 0.100 | H76: 0.100 | I76: 13.900 | J76: 57 | K76: 0.000 | L76: 1.120 | M76: 0 | N76: 0.010 | O76: 2.860 | P76: 1.340 | Q76: 0.730 | R76: 0.080
A77: ХЛЕБ БЕЛЫЙ 1 сорт | F77: 30 | G77: 2.280 | H77: 0.240 | I77: 14.760 | J77: 71 | K77: 0.033 | L77: 1.600 | M77: 0.03 | N77: 0.000 | O77: 6.000 | P77: 19.500 | Q77: 4.200 | R77: 0.330
A78: ХЛЕБ СЕЛЬСКИЙ | F78: 20 | G78: 1.3 | H78: 0.2 | I78: 7 | J78: 35 | K78: 0.02 | L78: 0 | M78: 0 | N78: 0.2 | O78: 4.7 | P78: 21.1 | Q78: 6.3 | R78: 0.52
A79: Итого: | G79: =SUM(G74:G78) -> 25.81 | H79: 20.35 | I79: 73.63 | J79: 583.00 | K79: 0.35 | L79: 18.73 | M79: 0.09 | N79: 0.63 | O79: 62.26 | P79: 267.04 | Q79: 70.03 | R79: 3.50
A80: 3 день
A81: ФРУКТЫ (ГРУШИ) | F81: 100 | G81: 0.400 | H81: 0.300 | I81: 10.300 | J81: 47 | K81: 0.020 | L81: 5.000 | M81: - | N81: 0.400 | O81: 19.000 | P81: 16.000 | Q81: 12.000 | R81: 2.300
A82: САЛАТ ИЗ БЕЛОКОЧАННОЙ КАПУСТЫ | F82: 100 | G82: 1.400 | H82: 5.000 | I82: 9.000 | J82: 87 | K82: 0.020 | L82: 32.400 | M82: - | N82: 0.000 | O82: 37.300 | P82: 27.600 | Q82: 15.100 | R82: 0.500
A83: ШНИЦЕЛЬ РЫБНЫЙ НАТУРАЛЬНЫЙ | F83: 80 | G83: 12.080 | H83: 3.920 | I83: 8.210 | J83: 116 | K83: 0.080 | L83: 2.620 | M83: 0.010 | N83: 0.000 | O83: 38.900 | P83: 164.600 | Q83: 28.900 | R83: 0.870
A84: ПЮРЕ КАРТОФЕЛЬНОЕ | F84: 150 | G84: 3.060 | H84: 4.800 | I84: 20.400 | J84: 137 | K84: 0.120 | L84: 18.160 | M84: 0.030 | N84: 0.100 | O84: 36.970 | P84: 86.600 | Q84: 27.750 | R84: 1.000
A85: ЧАЙ С САХАРОМ | F85: 200/15 | G85: 0.200 | I85: 13.70 | J85: 56 | K85: 0.008 | L85: 3.750 | M85: - | N85: 0.075 | O85: 9.970 | P85: 7.500 | Q85: 6.500 | R85: 0.197
A86: ХЛЕБ БЕЛЫЙ 1 сорт | F86: 30 | G86: 2.280 | H86: 0.240 | I86: 14.760 | J86: 71 | K86: 0.033 | L86: 1.600 | M86: 0.03 | N86: 0.000 | O86: 6.000 | P86: 19.500 | Q86: 4.200 | R86: 0.330
A87: ХЛЕБ СЕЛЬСКИЙ | F87: 20 | G87: 1.3 | H87: 0.2 | I87: 7 | J87: 35 | K87: 0.02 | L87: 0 | M87: 0 | N87: 0.2 | O87: 4.7 | P87: 21.1 | Q87: 6.3 | R87: 0.52
A88: Итого: | G88: =SUM(G81:G87) -> 20.72 | H88: 14.46 | I88: 83.37 | J88: 549.65 | K88: 0.30 | L88: 63.53 | M88: 0.07 | N88: 0.78 | O88: 152.84 | P88: 342.90 | Q88: 100.75 | R88: 5.72
A89: 4 день
A90: ФРУКТЫ (ЯБЛОКИ) | F90: 110 | G90: 0.330 | H90: 0.440 | I90: 9.460 | J90: 44 | K90: 0.033 | L90: 11.000 | M90: - | N90: 0.220 | O90: 17.600 | P90: 12.100 | Q90: 9.900 | R90: 2.420
A91: САЛАТ ИЗ МОРКОВИ | F91: 100 | G91: 1.250 | H91: 0.090 | I91: 11.600 | J91: 52 | K91: 0.058 | L91: 4.800 | M91: 0 | N91: 0.000 | O91: 13.302 | P91: 26.850 | Q91: 18.468 | R91: 0.358
A92: ТЕФТЕЛИ МЯСНЫЕ | F92: 60/60 | G92: 8.140 | H92: 9.040 | I92: 10.300 | J92: 155 | K92: 0.050 | L92: 0.450 | M92: 0.040 | N92: 0.000 | O92: 25.800 | P92: 90.700 | Q92: 18.000 | R92: 0.740
A93: МАКАРОНЫ ОТВАРНЫЕ | F93: 150 | G93: 5.652 | H93: 4.469 | I93: 28.000 | J93: 175 | K93: 0.087 | L93: - | M93: 21.000 | N93: 0.818 | O93: 16.470 | P93: 47.070 | Q93: 8.490 | R93: 0.870
A94: КОФЕЙНЫЙ НАПИТОК С МОЛОКОМ | F94: 200 | G94: 3.120 | H94: 2.600 | I94: 14.170 | J94: 93 | K94: 0 | L94: 1.300 | M94: 0.01 | N94: 0 | O94: 125.700 | P94: 90.000 | Q94: 14.000 | R94: 0.130
A95: ХЛЕБ БЕЛЫЙ 1 сорт | F95: 30 | G95: 2.280 | H95: 0.240 | I95: 14.760 | J95: 71 | K95: 0.033 | L95: 1.600 | M95: 0.03 | N95: 0.000 | O95: 6.000 | P95: 19.500 | Q95: 4.200 | R95: 0.330
A96: ХЛЕБ СЕЛЬСКИЙ | F96: 20 | G96: 1.3 | H96: 0.2 | I96: 7 | J96: 35 | K96: 0.02 | L96: 0 | M96: 0 | N96: 0.2 | O96: 4.7 | P96: 21.1 | Q96: 6.3 | R96: 0.52
A97: Итого: | G97: =SUM(G89:G96) -> 22.072 | H97: 17.079 | I97: 95.290 | J97: 625.600 | K97: 0.321 | L97: 19.150 | M97: 21.080 | N97: 1.238 | O97: 209.572 | P97: 307.320 | Q97: 79.358 | R97: 5.368
A98: 5 день
A99: ФРУКТЫ (БАНАНЫ) | F99: 150 | G99: 2.250 | H99: 0.750 | I99: 31.500 | J99: 144 | K99: 0.060 | L99: 11.000 | M99: - | N99: 0.220 | O99: 12.000 | P99: 42.000 | Q99: 63.000 | R99: 0.900
A100: СВЕКЛА ОТВАРНАЯ (ДОЛЬКАМИ) С МАСЛОМ | F100: 60 | G100: 0.850 | H100: 3.650 | I100: 5.000 | J100: 56 | K100: 0.010 | L100: 5.700 | M100: 0 | N100: 0.000 | O100: 21.090 | P100: 24.580 | Q100: 12.540 | R100: 0.800
A101: ЗАПЕКАНКА КАРТОФЕЛЬНАЯ С МЯСОМ, МАСЛОМ | F101: 200 | G101: 15.160 | H101: 11.880 | I101: 32.120 | J101: 296 | K101: 0.213 | L101: 4.750 | M101: 0.040 | N101: 0.000 | O101: 31.000 | P101: 213.370 | Q101: 56.500 | R101: 2.280
A102: ЧАЙ С ЛИМОНОМ | F102: 200/15/7 | G102: 0.100 | H102: 0.100 | I102: 13.900 | J102: 57 | K102: 0.000 | L102: 1.120 | M102: 0 | N102: 0.010 | O102: 2.860 | P102: 1.340 | Q102: 0.730 | R102: 0.080
A103: ХЛЕБ БЕЛЫЙ 1 сорт | F103: 30 | G103: 2.280 | H103: 0.240 | I103: 14.760 | J103: 71 | K103: 0.033 | L103: 1.600 | M103: 0.03 | N103: 0.000 | O103: 6.000 | P103: 19.500 | Q103: 4.200 | R103: 0.330
A104: ХЛЕБ СЕЛЬСКИЙ | F104: 20 | G104: 1.3 | H104: 0.2 | I104: 7 | J104: 35 | K104: 0.02 | L104: 0 | M104: 0 | N104: 0.2 | O104: 4.7 | P104: 21.1 | Q104: 6.3 | R104: 0.52
A105: Итого: | G105: =SUM(G99:G104) -> 21.940 | H105: 16.820 | I105: 104.280 | J105: 659.590 | K105: 0.336 | L105: 24.170 | M105: 0.070 | N105: 0.430 | O105: 77.650 | P105: 321.890 | Q105: 143.270 | R105: 4.910
A106: 6 день
A107: САЛАТ ИЖ СВЕЖИХ ОГУРЦОВ С МАСЛОМ | F107: 60 | G107: 0.456 | H107: 3.650 | I107: 1.420 | J107: 40 | K107: 0.017 | L107: 5.700 | M107: 0 | N107: 0.000 | O107: 13.110 | P107: 24.580 | Q107: 7.980 | R107: 0.342
A108: СОСИСКИ ОТВАРНЫЕ | F108: 80 | G108: 9.600 | H108: 6.100 | I108: 12.800 | J108: 144 | K108: 0.240 | L108: 0.000 | M108: 0.000 | N108: 0.400 | O108: 26.720 | P108: 146.240 | Q108: 15.800 | R108: 1.920
A109: РИС ОТВАРНОЙ | F109: 150 | G109: 3.650 | H109: 5.370 | I109: 36.680 | J109: 210 | K109: 0.025 | L109: 0 | M109: 0.021 | N109: 0.000 | O109: 1.360 | P109: 60.600 | Q109: 19.000 | R109: 0.530
A110: ЧАЙ С САХАРОМ | F110: 200/15 | G110: 0.200 | I110: 13.70 | J110: 56 | K110: 0.008 | L110: 3.750 | M110: - | N110: 0.075 | O110: 9.970 | P110: 7.500 | Q110: 6.500 | R110: 0.197
A111: ХЛЕБ БЕЛЫЙ 1 сорт | F111: 30 | G111: 2.280 | H111: 0.240 | I111: 14.760 | J111: 71 | K111: 0.033 | L111: 1.600 | M111: 0.03 | N111: 0.000 | O111: 6.000 | P111: 19.500 | Q111: 4.200 | R111: 0.330
A112: ХЛЕБ СЕЛЬСКИЙ | F112: 20 | G112: 1.3 | H112: 0.2 | I112: 7 | J112: 35 | K112: 0.02 | L112: 0 | M112: 0 | N112: 0.2 | O112: 4.7 | P112: 21.1 | Q112: 6.3 | R112: 0.52
A113: Итого: | G113: =SUM(G107:G112) -> 17.486 | H113: 15.560 | I113: 86.360 | J113: 556.080 | K113: 0.343 | L113: 11.050 | M113: 0.051 | N113: 0.675 | O113: 61.860 | P113: 279.520 | Q113: 59.780 | R113: 3.839

Sheet совмещенное
B1: Примерное двухнедельное меню для учащихся с 11 до 18 лет в общеобразовательных организациях Агрызского района в 2020 - 2021 уч.году
A5: Наименование блюд | F5: Выход | G5: Белки, г | H5: Жиры, г | I5: Углеводы, г | J5: Калорийность, ккал | K5: Витамин B1, мг | L5: Витамин С, мг | M5: Витамин А, мг | N5: Витамин Е, мг | O5: Ca, мг | P5: P, мг | Q5: Mg, мг | R5: Fe, мг
A6: 1-ая неделя
A7: 1 день
A8: БОРЩ СО СМЕТ С ФРИКАДЕЛЬКАМИ | F8: 250/10/20 | G8: 12.450 | H8: 13.025 | I8: 24.900 | J8: 233 | K8: 0.075 | L8: 8.780 | M8: 0 | N8: 0.000 | O8: 8.800 | P8: 64.420 | Q8: 29.950 | R8: 1.340
A9: КАША ЯЧНЕВАЯ ВЯЗКАЯ | F9: 150/5 | G9: 3.800 | H9: 6.300 | I9: 27.900 | J9: 183 | K9: 0.070 | L9: 0.06 | M9: 0.000 | N9: 0.140 | O9: 126.000 | P9: 195.600 | Q9: 14.000 | R9: 0.960
A10: ЧАЙ С САХАРОМ | F10: 200/15 | G10: 0.200 | H10: 0.000 | I10: 13.70 | J10: 56 | K10: 0.008 | L10: 3.750 | M10: - | N10: 0.075 | O10: 9.970 | P10: 7.500 | Q10: 6.500 | R10: 0.197
A11: ХЛЕБ СЕЛЬСКИЙ 1 сорт | F11: 20 | G11: 1.3 | H11: 0.2 | I11: 7 | J11: 35 | K11: 0.02 | L11: 0 | M11: 0 | N11: 0.2 | O11: 4.7 | P11: 21.1 | Q11: 6.3 | R11: 0.52
A12: ХЛЕБ БЕЛЫЙ 1 сорт | F12: 30 | G12: 2.280 | H12: 0.240 | I12: 14.760 | J12: 71 | K12: 0.033 | L12: 0 | M12: - | N12: 0.330 | O12: 6.000 | P12: 19.500 | Q12: 4.200 | R12: 0.330
A13: БАНАН | F13: 100 | G13: 1.500 | H13: 0.000 | I13: 21.000 | J13: 95 | K13: 0.040 | L13: 10.000 | M13: 0 | N13: 0.600 | O13: 8.000 | P13: 20.000 | Q13: 42.000 | R13: 0.600
A14: Итого: | G14: =SUM(G8:G12) -> 20.030 | H14: 19.765 | I14: 88.260 | J14: 578.000 | K14: 0.206 | L14: 12.590 | M14: 0.000 | N14: 0.745 | O14: 155.470 | P14: 308.120 | Q14: 60.950 | R14: 3.347
A15: 2 день
A16: САЛАТ ИЗ БЕЛОКОЧАННОЙ КАПУСТЫ | F16: 65 | G16: 1.05 | H16: 3.85 | I16: 6.67 | J16: 65.26 | K16: 0.01 | L16: 26.25 | M16: 0.01 | N16: 0.03 | O16: 4.2 | P16: 13.4 | Q16: 12.8 | R16: 0
A17: СУП РИСОВЫЙ С ТОМАТОМ С ФРИКАДЕЛЬКАМИ | F17: 250/20 | G17: 14.620 | H17: 12.525 | I17: 154.820
A18: МАКАРОНЫ ОТВАРНЫЕ | F18: 150/5 | G18: 6.400 | H18: 7.400 | I18: 42.300 | J18: 261 | K18: 0.110 | L18: 0.000 | M18: 0.000 | N18: 0.960 | O18: 23.800 | P18: 54.500 | Q18: 10.700 | R18: 0.430
A19: ЧАЙ С САХАРОМ | F19: 200/15 | G19: 0.200 | I19: 13.70 | J19: 56 | K19: 0.008 | L19: 3.750 | M19: - | N19: 0.075 | O19: 9.970 | P19: 7.500 | Q19: 6.500 | R19: 0.197
A20: ХЛЕБ СЕЛЬСКИЙ 1 сорт | F20: 20 | G20: 1.3 | H20: 0.2 | I20: 7 | J20: 35 | K20: 0.02 | L20: 0 | M20: 0 | N20: 0.2 | O20: 4.7 | P20: 21.1 | Q20: 6.3 | R20: 0.52
A21: ХЛЕБ БЕЛЫЙ 1 сорт | F21: 30 | G21: 2.280 | H21: 0.240 | I21: 14.760 | J21: 71 | K21: 0.033 | L21: - | M21: - | N21: 0.330 | O21: 6.000 | P21: 19.500 | Q21: 4.200 | R21: 0.330
A22: Итого: | G22: =SUM(G17:G21) -> 24.80 | H22: 20.37 | I22: 232.58 | J22: 423.40 | K22: 0.17 | L22: 3.75 | M22: 0.00 | N22: 1.57 | O22: 44.47 | P22: 102.60 | Q22: 27.70 | R22: 1.48
A23: 3 день
A24: САЛАТ ИЗ СВ МОРКОВИ | F24: 65 | G24: 0.75 | H24: 0.08 | I24: 8.7 | J24: 37.5 | K24: 0.02 | L24: 3.6 | M24: 0 | N24: 0.03 | O24: 19.6 | P24: 17.75 | Q24: 27.36 | R24: 0.51
A25: Щи со смет с фрикадельками | F25: 250/10/20 | G25: 13.690 | H25: 14.625 | I25: 8.740 | J25: 223 | K25: 0.057 | L25: 18.46 | M25: 0 | N25: 0 | O25: 43.32 | P25: 47.62 | Q25: 22.25 | R25: 0.79
A26: КАША РИСОВАЯ ВЯЗКАЯ | F26: 150/5 | G26: 2.700 | H26: 7.020 | I26: 27.540 | J26: 184 | K26: 0.020 | L26: 0.02 | M26: 0.000 | N26: 0.220 | O26: 5.400 | P26: 27.600 | Q26: 19.700 | R26: 0.410
A27: ЧАЙ С САХАРОМ | F27: 200/15 | G27: 0.200 | I27: 13.70 | J27: 56 | K27: 0.008 | L27: 3.750 | M27: - | N27: 0.075 | O27: 9.970 | P27: 7.500 | Q27: 6.500 | R27: 0.197
A28: ХЛЕБ СЕЛЬСКИЙ 1 сорт | F28: 20 | G28: 1.3 | H28: 0.2 | I28: 7 | J28: 35 | K28: 0.02 | L28: 0 | M28: 0 | N28: 0.2 | O28: 4.7 | P28: 21.1 | Q28: 6.3 | R28: 0.52
A29: ХЛЕБ БЕЛЫЙ 1 сорт | F29: 30 | G29: 2.280 | H29: 0.240 | I29: 14.760 | J29: 71 | K29: 0.033 | L29: - | M29: - | N29: 0.330 | O29: 6.000 | P29: 19.500 | Q29: 4.200 | R29: 0.330
A30: Итого: | G30: =SUM(G26:G29) -> 6.480 | H30: 7.460 | I30: 63.000 | J30: 346.140 | K30: 0.081 | L30: 3.770 | M30: 0.000 | N30: 0.825 | O30: 26.070 | P30: 75.700 | Q30: 36.700 | R30: 1.457
A31: 4 день
A32: СУП РАССОЛЬНИК СО СМЕТ С ФРИКАДЕЛЬКАМИ | F32: 250/10/20 | G32: 14.050 | H32: 14.825 | I32: 16.850 | J32: 259 | K32: 0.097 | L32: 7.500 | M32: 0 | N32: 0.000 | O32: 26.450 | P32: 71.950 | Q32: 25.900 | R32: 0.970
A33: ПЮРЕ КАРТОФЕЛЬНОЕ | F33: 150/5 | G33: 3.800 | H33: 8.200 | I33: 26.300 | J33: 197 | K33: 0.190 | L33: 0.110 | M33: 13.080 | N33: 0.440 | O33: 58.000 | P33: 116.400 | Q33: 36.000 | R33: 1.480
A34: ЧАЙ С САХАРОМ | F34: 200/15 | G34: 0.200 | H34: 0.000 | I34: 13.70 | J34: 56 | K34: 0.008 | L34: 3.750 | M34: - | N34: 0.075 | O34: 9.970 | P34: 7.500 | Q34: 6.500 | R34: 0.197
A35: ХЛЕБ СЕЛЬСКИЙ 1 сорт | F35: 20 | G35: 1.3 | H35: 0.2 | I35: 7 | J35: 35 | K35: 0.02 | L35: 0 | M35: 0 | N35: 0.2 | O35: 4.7 | P35: 21.1 | Q35: 6.3 | R35: 0.52
A36: ХЛЕБ БЕЛЫЙ 1 сорт | F36: 30 | G36: 2.280 | H36: 0.240 | I36: 14.760 | J36: 71 | K36: 0.033 | L36: - | M36: - | N36: 0.330 | O36: 6.000 | P36: 19.500 | Q36: 4.200 | R36: 0.330
A37: Итого: | G37: =SUM(G32:G36) -> 21.630 | H37: 23.465 | I37: 78.610 | J37: 617.480 | K37: 0.348 | L37: 11.360 | M37: 13.080 | N37: 1.045 | O37: 105.120 | P37: 236.450 | Q37: 78.900 | R37: 3.497
A38: 5 день
A39: СУП КАРТОФЕЛЬНЫЙ ГРОХОВЫЙ С ФРИКАДЕЛЬКАМИ | F39: 250/20 | G39: 17.070 | H39: 15.075 | I39: 16.440 | J39: 271 | K39: 0.15 | L39: 5.81 | M39: 0 | N39: 0 | O39: 50.28 | P39: 138 | Q39: 38.3 | R39: 1.8
A40: КОТЛЕТЫ РУБЛЕННЫЕ ИЗ ПТИЦЫ | F40: 50 | G40: 12.640 | H40: 13.140 | I40: 13.460 | J40: 223 | K40: 0.080 | L40: 0.670 | M40: 0.050 | N40: 0.000 | O40: 35.100 | P40: 127.800 | Q40: 21.000 | R40: 1.470
A41: КАША ГРЕЧНЕВАЯ ВЯЗКАЯ | F41: 150/5 | G41: 5.400 | H41: 8.200 | I41: 26.900 | J41: 180 | K41: 0.240 | L41: 0.100 | M41: 0 | N41: 0.480 | O41: 208.800 | P41: 134.400 | Q41: 38.000 | R41: 1.200
A42: ЧАЙ С САХАРОМ | F42: 200/15 | G42: 0.200 | I42: 13.70 | J42: 56 | K42: 0.008 | L42: 3.750 | M42: - | N42: 0.075 | O42: 9.970 | P42: 7.500 | Q42: 6.500 | R42: 0.197
A43: ХЛЕБ СЕЛЬСКИЙ 1 сорт | F43: 20 | G43: 1.3 | H43: 0.2 | I43: 7 | J43: 35 | K43: 0.02 | L43: 0 | M43: 0 | N43: 0.2 | O43: 4.7 | P43: 21.1 | Q43: 6.3 | R43: 0.52
A44: ХЛЕБ БЕЛЫЙ 1 сорт | F44: 30 | G44: 2.280 | H44: 0.240 | I44: 14.760 | J44: 71 | K44: 0.033 | L44: - | M44: - | N44: 0.330 | O44: 6.000 | P44: 19.500 | Q44: 4.200 | R44: 0.330
A45: Итого: | G45: =SUM(G40:G44) -> 21.820 | H45: 21.780 | I45: 75.820 | J45: 565.000 | K45: 0.381 | L45: 4.520 | M45: 0.050 | N45: 1.085 | O45: 264.570 | P45: 310.300 | Q45: 76.000 | R45: 3.717
A46: 6 день
A47: СДОБА ОБЫКНОВЕННАЯ | F47: 100 | G47: 7.760 | H47: 4.720 | I47: 52.300 | J47: 282 | K47: 0.140 | L47: 0 | M47: 0.020 | N47: 0.000 | O47: 22.000 | P47: 74.000 | Q47: 29.000 | R47: 1.380
A48: Фрукт (ЯБЛОКО) | F48: 110 | G48: 0.000 | H48: 0.000 | I48: 8.910 | J48: 36 | K48: 0.770 | L48: 12.1 | M48: 0.000 | N48: 0.000 | O48: 66.000 | P48: 21.890 | Q48: 6.050 | R48: 0.297
A49: ЧАЙ С САХАРОМ | F49: 200/15 | G49: 0.200 | I49: 13.70 | J49: 56 | K49: 0.008 | L49: 3.750 | M49: - | N49: 0.075 | O49: 9.970 | P49: 7.500 | Q49: 6.500 | R49: 0.197
A50: Итого: | G50: =SUM(G47:G49) -> 7.960 | H50: 4.720 | I50: 74.910 | J50: 373.530 | K50: 0.918 | L50: 15.850 | M50: 0.020 | N50: 0.075 | O50: 97.970 | P50: 103.390 | Q50: 41.550 | R50: 1.874
A55: Наименование блюд | F55: Выход | G55: Белки, г | H55: Жиры, г | I55: Углеводы, г | J55: Калорийность, ккал | K55: Витамин B1, мг | L55: Витамин С, мг | M55: Витамин А, мг | N55: Витамин Е, мг | O55: Ca, мг | P55: P, мг | Q55: Mg, мг | R55: Fe, мг
A56: 2-ая неделя
A57: 1 день
A58: САЛАТ ИЗ СВ КАПУСТЫ | F58: 65 | G58: 1.05 | H58: 3.85 | I58: 6.67 | J58: 65.26 | K58: 0.01 | L58: 26.25 | M58: 0.01 | N58: 0.03 | O58: 4.2 | P58: 13.4 | Q58: 12.8 | R58: 0
A59: СУП ЛАПША ДОМАШНЯЯ С ЦЫПЛЯТАМИ | F59: 250/20 | G59: 14.650 | H59: 12.565 | I59: 22.366 | J59: 243 | K59: 0.050 | L59: 0.5 | M59: 0.000 | N59: 0.000 | O59: 19.700 | P59: 29.300 | Q59: 10.450 | R59: 0.600
A60: КАША ПШЕНИЧНАЯ ВЯЗКАЯ | F60: 150/5 | G60: 3.800 | H60: 6.300 | I60: 27.900 | J60: 183 | K60: 0.070 | L60: 0.06 | M60: 0.000 | N60: 0.140 | O60: 126.000 | P60: 195.600 | Q60: 14.000 | R60: 0.960
A61: ЧАЙ С САХАРОМ | F61: 200/15 | G61: 0.200 | I61: 13.70 | J61: 56 | K61: 0.008 | L61: 3.750 | M61: - | N61: 0.075 | O61: 9.970 | P61: 7.500 | Q61: 6.500 | R61: 0.197
A62: ХЛЕБ БЕЛЫЙ 1 сорт | F62: 30 | G62: 2.280 | H62: 0.240 | I62: 14.760 | J62: 71 | K62: 0.033 | L62: 1.600 | M62: 0.03 | N62: 0.000 | O62: 6.000 | P62: 19.500 | Q62: 4.200 | R62: 0.330
A63: ХЛЕБ СЕЛЬСКИЙ | F63: 20 | G63: 1.3 | H63: 0.2 | I63: 7 | J63: 35 | K63: 0.02 | L63: 0 | M63: 0 | N63: 0.2 | O63: 4.7 | P63: 21.1 | Q63: 6.3 | R63: 0.52
A64: Итого: | G64: =SUM(G58:G63) -> 23.280 | H64: 23.155 | I64: 92.396 | J64: 652.740 | K64: 0.191 | L64: 32.160 | M64: 0.040 | N64: 0.445 | O64: 170.570 | P64: 286.400 | Q64: 54.250 | R64: 2.607
A65: 2 день
A66: БОРЩ СО СМЕТ С ФРИКАДЕЛЬКАМИ | F66: 250/10/20 | G66: 12.450 | H66: 13.025 | I66: 24.900 | J66: 233 | K66: 0.075 | L66: 8.780 | M66: 0 | N66: 0.000 | O66: 8.800 | P66: 64.420 | Q66: 29.950 | R66: 1.340
A67: КАША РИСОВАЯ ВЯЗКАЯ | F67: 150/5 | G67: 2.700 | H67: 7.020 | I67: 27.540 | J67: 184 | K67: 0.020 | L67: 0.02 | M67: 0.000 | N67: 0.220 | O67: 5.400 | P67: 27.600 | Q67: 19.700 | R67: 0.410
A68: ФРУКТЫ (БАНАН) | F68: 100 | G68: 1.500 | H68: 0.000 | I68: 21.000 | J68: 95 | K68: 0.040 | L68: 10.000 | M68: 0 | N68: 0.600 | O68: 8.000 | P68: 20.000 | Q68: 42.000 | R68: 0.600
A69: ЧАЙ С САХАРОМ | F69: 200/15 | G69: 0.200 | I69: 13.70 | J69: 56 | K69: 0.008 | L69: 3.750 | M69: - | N69: 0.075 | O69: 9.970 | P69: 7.500 | Q69: 6.500 | R69: 0.197
A70: ХЛЕБ БЕЛЫЙ 1 сорт | F70: 30 | G70: 2.280 | H70: 0.240 | I70: 14.760 | J70: 71 | K70: 0.033 | L70: 1.600 | M70: 0.03 | N70: 0.000 | O70: 6.000 | P70: 19.500 | Q70: 4.200 | R70: 0.330
A71: ХЛЕБ СЕЛЬСКИЙ | F71: 20 | G71: 1.3 | H71: 0.2 | I71: 7 | J71: 35 | K71: 0.02 | L71: 0 | M71: 0 | N71: 0.2 | O71: 4.7 | P71: 21.1 | Q71: 6.3 | R71: 0.52
A72: Итого: | G72: =SUM(G66:G71) -> 20.43 | H72: 20.49 | I72: 108.90 | J72: 674.34 | K72: 0.20 | L72: 24.15 | M72: 0.03 | N72: 1.10 | O72: 42.87 | P72: 160.12 | Q72: 108.65 | R72: 3.40
A73: 3 день
A74: СУП КРЕСТЬЯНСКИЙ СО СМЕТАНОЙ С ФРИКАДЕЛЬКАМИ | F74: 250/10/20 | G74: 14.250 | H74: 15.525 | I74: 8.000 | J74: 229 | L74: 9.920 | O74: 38.720 | Q74: 14.180 | R74: 0.710
A75: МАКАРОНЫ ОТВАРНЫЕ | F75: 150/5 | G75: 6.400 | H75: 7.400 | I75: 42.300 | J75: 261 | K75: 0.110 | L75: 0.000 | M75: 0.000 | N75: 0.960 | O75: 23.800 | P75: 54.500 | Q75: 10.700 | R75: 0.430
A76: ЧАЙ С САХАРОМ | F76: 200/15 | G76: 0.200 | I76: 13.70 | J76: 56 | K76: 0.008 | L76: 3.750 | M76: - | N76: 0.075 | O76: 9.970 | P76: 7.500 | Q76: 6.500 | R76: 0.197
A77: ХЛЕБ БЕЛЫЙ 1 сорт | F77: 30 | G77: 2.280 | H77: 0.240 | I77: 14.760 | J77: 71 | K77: 0.033 | L77: 1.600 | M77: 0.03 | N77: 0.000 | O77: 6.000 | P77: 19.500 | Q77: 4.200 | R77: 0.330
A78: ХЛЕБ СЕЛЬСКИЙ | F78: 20 | G78: 1.3 | H78: 0.2 | I78: 7 | J78: 35 | K78: 0.02 | L78: 0 | M78: 0 | N78: 0.2 | O78: 4.7 | P78: 21.1 | Q78: 6.3 | R78: 0.52
A79: Итого: | G79: =SUM(G74:G78) -> 24.43 | H79: 23.37 | I79: 85.76 | J79: 652.08 | K79: 0.17 | L79: 15.27 | M79: 0.03 | N79: 1.24 | O79: 83.19 | P79: 102.60 | Q79: 41.88 | R79: 2.19
A80: 4 день
A81: САЛАТ ИЗ СВ МОРКОВИ | F81: 65 | G81: 0.75 | H81: 0.08 | I81: 8.7 | J81: 37.5 | K81: 0.02 | L81: 3.6 | M81: 0 | N81: 0.03 | O81: 19.6 | P81: 17.75 | Q81: 27.36 | R81: 0.51
A82: ЩИ СО СМЕТАНОЙ С ФРИКАДЕЛЬКАМИ | F82: 250/10/20 | G82: 13.690 | H82: 14.625 | I82: 8.740 | J82: 223 | K82: 0.057 | L82: 18.46 | M82: 0 | N82: 0 | O82: 43.32 | P82: 47.62 | Q82: 22.25 | R82: 0.79
A83: КАША ПШЕННАЯ ВЯЗКАЯ | F83: 150/5 | G83: 4.200 | H83: 6.800 | I83: 24.000 | J83: 176 | K83: 0.100 | M83: 0.100 | N83: 0.200 | O83: 100.000 | P83: 153.000 | Q83: 5.800 | R83: 0.700
A84: ЧАЙ С САХАРОМ | F84: 200/15 | G84: 0.200 | I84: 13.70 | J84: 56 | K84: 0.008 | L84: 3.750 | M84: - | N84: 0.075 | O84: 9.970 | P84: 7.500 | Q84: 6.500 | R84: 0.197
A85: ХЛЕБ БЕЛЫЙ 1 сорт | F85: 30 | G85: 2.280 | H85: 0.240 | I85: 14.760 | J85: 71 | K85: 0.033 | L85: 1.600 | M85: 0.03 | N85: 0.000 | O85: 6.000 | P85: 19.500 | Q85: 4.200 | R85: 0.330
A86: ХЛЕБ СЕЛЬСКИЙ | F86: 20 | G86: 1.3 | H86: 0.2 | I86: 7 | J86: 35 | K86: 0.02 | L86: 0 | M86: 0 | N86: 0.2 | O86: 4.7 | P86: 21.1 | Q86: 6.3 | R86: 0.52
A87: Итого: | G87: =SUM(G80:G86) -> 22.420 | H87: 21.945 | I87: 76.900 | J87: 598.180 | K87: 0.238 | L87: 27.410 | M87: 0.130 | N87: 0.505 | O87: 183.590 | P87: 266.470 | Q87: 72.410 | R87: 3.047
A88: 5 день
A89: СУП С МАКАРОННЫМИ ИЗДЕЛИЯМИ С ЦЫПЛЯТАМИ | F89: 250/20 | G89: 14.650 | H89: 12.565 | I89: 22.366 | J89: 243 | K89: 0.113 | L89: 8.250 | M89: 0 | N89: 0.000 | O89: 24.600 | P89: 66.650 | Q89: 27.000 | R89: 1.080
A90: КАША ЯЧНЕВАЯ ВЯЗКАЯ | F90: 150/5 | G90: 3.800 | H90: 6.300 | I90: 27.900 | J90: 183 | K90: 0.070 | L90: 0.06 | M90: 0.000 | N90: 0.140 | O90: 126.000 | P90: 195.600 | Q90: 14.000 | R90: 0.960
A91: БУЛОЧКА ДОМАШНЯЯ | F91: 65 | G91: 5.044 | H91: 3.068 | I91: 33.995 | J91: 183 | K91: 0.091 | L91: 0.000 | M91: 0.013 | N91: 0.000 | O91: 14.310 | P91: 48.100 | Q91: 18.850 | R91: 0.897
A92: ЧАЙ С САХАРОМ | F92: 200/15 | G92: 0.200 | I92: 13.70 | J92: 56 | K92: 0.008 | L92: 3.750 | M92: - | N92: 0.075 | O92: 9.970 | P92: 7.500 | Q92: 6.500 | R92: 0.197
A93: ХЛЕБ БЕЛЫЙ 1 сорт | F93: 30 | G93: 2.280 | H93: 0.240 | I93: 14.760 | J93: 71 | K93: 0.033 | L93: 1.600 | M93: 0.03 | N93: 0.000 | O93: 6.000 | P93: 19.500 | Q93: 4.200 | R93: 0.330
A94: ХЛЕБ СЕЛЬСКИЙ | F94: 20 | G94: 1.3 | H94: 0.2 | I94: 7 | J94: 35 | K94: 0.02 | L94: 0 | M94: 0 | N94: 0.2 | O94: 4.7 | P94: 21.1 | Q94: 6.3 | R94: 0.52
A95: Итого: | G95: =SUM(G89:G94) -> 27.274 | H95: 22.373 | I95: 119.721 | J95: 770.780 | K95: 0.335 | L95: 13.660 | M95: 0.043 | N95: 0.415 | O95: 185.580 | P95: 358.450 | Q95: 76.850 | R95: 3.984
A96: 6 день
A97: ПИРОЖОК С ПОВИДЛОМ | F97: 100 | G97: 5.780 | H97: 2.340 | I97: 57.560 | J97: 274 | K97: 0.100 | L97: 0.06 | M97: 0.000 | N97: 0.000 | O97: 18.800 | P97: 59.200 | Q97: 23.800 | R97: 1.100
A98: ФРУКТЫ (МАНДАРИН) | F98: 80 | G98: 0.800 | H98: 0.200 | I98: 7.500 | J98: 38 | K98: 0.040 | L98: 10.000 | M98: 0 | N98: 0.600 | O98: 8.000 | P98: 20.000 | Q98: 42.000 | R98: 0.600
A99: ЧАЙ С САХАРОМ | F99: 200/15 | G99: 0.200 | I99: 13.70 | J99: 56 | K99: 0.008 | L99: 3.750 | M99: - | N99: 0.075 | O99: 9.970 | P99: 7.500 | Q99: 6.500 | R99: 0.197
A100: Итого: | G100: =SUM(G97:G99) -> 6.780 | H100: 2.540 | I100: 78.760 | J100: 368.000 | K100: 0.148 | L100: 13.810 | M100: 0.000 | N100: 0.675 | O100: 36.770 | P100: 86.700 | Q100: 72.300 | R100: 1.897

Sheet РФ
B1: Примерное двухнедельное меню для учащихся с 11 до 18 лет в общеобразовательных организациях Агрызского района в 2020 - 2021 уч.году
A5: Наименование блюд | F5: Выход | G5: Белки, г | H5: Жиры, г | I5: Углеводы, г | J5: Калорийность, ккал | K5: Витамин B1, мг | L5: Витамин С, мг | M5: Витамин А, мг | N5: Витамин Е, мг | O5: Ca, мг | P5: P, мг | Q5: Mg, мг | R5: Fe, мг
A6: 1-ая неделя
A7: 1 день
A8: КАША ЯЧНЕВАЯ ВЯЗКАЯ | F8: 150/5 | G8: 3.600 | H8: 7.000 | I8: 29.000 | J8: 193 | K8: 0.292 | L8: 0 | M8: 41.000 | N8: 0.518 | O8: 27.352 | P8: 180.553 | Q8: 104.550 | R8: 3.501
A9: ЧАЙ С САХАРОМ | F9: 200/15 | G9: 0.200 | I9: 13.70 | J9: 56 | K9: 0.008 | L9: 3.750 | M9: - | N9: 0.075 | O9: 9.970 | P9: 7.500 | Q9: 6.500 | R9: 0.197
A10: ХЛЕБ БЕЛЫЙ 1 сорт | F10: 30 | G10: 2.280 | H10: 0.240 | I10: 14.760 | J10: 71 | K10: 0.033 | L10: 0 | M10: - | N10: 0.330 | O10: 6.000 | P10: 19.500 | Q10: 4.200 | R10: 0.330
A11: Итого: | G11: =SUM(G8:G10) -> 6.080 | H11: 7.240 | I11: 57.460 | J11: 320.000 | K11: 0.333 | L11: 3.750 | M11: 41.000 | N11: 0.923 | O11: 43.322 | P11: 207.553 | Q11: 115.250 | R11: 4.028
A12: 2 день
A13: МАКАРОНЫ ОТВАРНЫЕ | F13: 150 | G13: 3.650 | H13: 5.370 | I13: 36.680 | J13: 210 | K13: 0.020 | L13: 0.000 | M13: 0.027 | N13: 0.000 | O13: 1.360 | P13: 60.900 | Q13: 16.300 | R13: 0.520
A14: ЧАЙ С САХАРОМ | F14: 200/15 | G14: 0.200 | I14: 13.70 | J14: 56 | K14: 0.008 | L14: 3.750 | M14: - | N14: 0.075 | O14: 9.970 | P14: 7.500 | Q14: 6.500 | R14: 0.197
A15: ХЛЕБ БЕЛЫЙ 1 сорт | F15: 30 | G15: 2.280 | H15: 0.240 | I15: 14.760 | J15: 71 | K15: 0.033 | L15: - | M15: - | N15: 0.330 | O15: 6.000 | P15: 19.500 | Q15: 4.200 | R15: 0.330
A16: Итого: | G16: =SUM(G13:G15) -> 6.13 | H16: 5.61 | I16: 65.14 | J16: 336.70 | K16: 0.06 | L16: 3.75 | M16: 0.03 | N16: 0.41 | O16: 17.33 | P16: 87.90 | Q16: 27.00 | R16: 1.05
A17: 3 день
A18: КАША РИСОВАЯ ВЯЗКАЯ | F18: 150 | G18: 5.652 | H18: 4.469 | I18: 28.000 | J18: 175 | K18: 0.087 | L18: - | M18: 21.000 | N18: 0.818 | O18: 16.470 | P18: 47.070 | Q18: 8.490 | R18: 0.870
A19: ЧАЙ С САХАРОМ | F19: 200/15 | G19: 0.200 | I19: 13.70 | J19: 56 | K19: 0.008 | L19: 3.750 | M19: - | N19: 0.075 | O19: 9.970 | P19: 7.500 | Q19: 6.500 | R19: 0.197
A20: ХЛЕБ БЕЛЫЙ 1 сорт | F20: 30 | G20: 2.280 | H20: 0.240 | I20: 14.760 | J20: 71 | K20: 0.033 | L20: - | M20: - | N20: 0.330 | O20: 6.000 | P20: 19.500 | Q20: 4.200 | R20: 0.330
A21: Итого: | G21: =SUM(G18:G20) -> 8.132 | H21: 4.709 | I21: 56.460 | J21: 302.000 | K21: 0.128 | L21: 3.750 | M21: 21.000 | N21: 1.223 | O21: 32.440 | P21: 74.070 | Q21: 19.190 | R21: 1.397
A22: 4 день
A23: ПЮРЕ КАРТОФЕЛЬНОЕ | F23: 150/5 | G23: 3.600 | H23: 7.000 | I23: 29.000 | J23: 193 | K23: 0.292 | L23: 0 | M23: 41.000 | N23: 0.518 | O23: 27.352 | P23: 180.553 | Q23: 104.550 | R23: 3.501
A24: ЧАЙ С САХАРОМ | F24: 200/15 | G24: 0.200 | I24: 13.70 | J24: 56 | K24: 0.008 | L24: 3.750 | M24: - | N24: 0.075 | O24: 9.970 | P24: 7.500 | Q24: 6.500 | R24: 0.197
A25: ХЛЕБ БЕЛЫЙ 1 сорт | F25: 30 | G25: 2.280 | H25: 0.240 | I25: 14.760 | J25: 71 | K25: 0.033 | L25: 0 | M25: - | N25: 0.330 | O25: 6.000 | P25: 19.500 | Q25: 4.200 | R25: 0.330
A26: Итого: | G26: =SUM(G23:G25) -> 6.080 | H26: 7.240 | I26: 57.460 | J26: 320.000 | K26: 0.333 | L26: 3.750 | M26: 41.000 | N26: 0.923 | O26: 43.322 | P26: 207.553 | Q26: 115.250 | R26: 4.028
A27: 5 день
A28: КАША ГРЕЧНЕВАЯ ВЯЗКАЯ | F28: 150 | G28: 3.650 | H28: 5.370 | I28: 36.680 | J28: 210 | K28: 0.025 | L28: 0 | M28: 0.021 | N28: 0.000 | O28: 1.360 | P28: 60.600 | Q28: 19.000 | R28: 0.530
A29: ЧАЙ С САХАРОМ | F29: 200/15 | G29: 0.200 | I29: 13.70 | J29: 56 | K29: 0.008 | L29: 3.750 | M29: - | N29: 0.075 | O29: 9.970 | P29: 7.500 | Q29: 6.500 | R29: 0.197
A30: ХЛЕБ БЕЛЫЙ 1 сорт | F30: 30 | G30: 2.280 | H30: 0.240 | I30: 14.760 | J30: 71 | K30: 0.033 | L30: - | M30: - | N30: 0.330 | O30: 6.000 | P30: 19.500 | Q30: 4.200 | R30: 0.330
A31: Итого: | G31: =SUM(G28:G30) -> 6.130 | H31: 5.610 | I31: 65.140 | J31: 336.700 | K31: 0.066 | L31: 3.750 | M31: 0.021 | N31: 0.405 | O31: 17.330 | P31: 87.600 | Q31: 29.700 | R31: 1.057
A32: 6 день
A33: СДОБА ОБЫКНОВЕННАЯ | F33: 100 | G33: 7.760 | H33: 4.720 | I33: 52.300 | J33: 282 | K33: 0.140 | L33: 0 | M33: 0.020 | N33: 0.000 | O33: 22.000 | P33: 74.000 | Q33: 29.000 | R33: 1.380
A34: ЧАЙ С САХАРОМ | F34: 200/15 | G34: 0.200 | I34: 13.70 | J34: 56 | K34: 0.008 | L34: 3.750 | M34: - | N34: 0.075 | O34: 9.970 | P34: 7.500 | Q34: 6.500 | R34: 0.197
A35: Итого: | G35: =SUM(G33:G34) -> 7.960 | H35: 4.720 | I35: 66.000 | J35: 338.000 | K35: 0.148 | L35: 3.750 | M35: 0.020 | N35: 0.075 | O35: 31.970 | P35: 81.500 | Q35: 35.500 | R35: 1.577
A40: Наименование блюд | F40: Выход | G40: Белки, г | H40: Жиры, г | I40: Углеводы, г | J40: Калорийность, ккал | K40: Витамин B1, мг | L40: Витамин С, мг | M40: Витамин А, мг | N40: Витамин Е, мг | O40: Ca, мг | P40: P, мг | Q40: Mg, мг | R40: Fe, мг
A41: 2-ая неделя
A42: 1 день
A43: КАША ПШЕНИЧНАЯ ВЯЗКАЯ | F43: 150/5 | G43: 3.600 | H43: 7.000 | I43: 29.000 | J43: 193 | K43: 0.292 | L43: 0 | M43: 41.000 | N43: 0.518 | O43: 27.352 | P43: 180.553 | Q43: 104.550 | R43: 3.501
A44: ЧАЙ С САХАРОМ | F44: 200/15 | G44: 0.200 | I44: 13.70 | J44: 56 | K44: 0.008 | L44: 3.750 | M44: - | N44: 0.075 | O44: 9.970 | P44: 7.500 | Q44: 6.500 | R44: 0.197
A45: ХЛЕБ БЕЛЫЙ 1 сорт | F45: 30 | G45: 2.280 | H45: 0.240 | I45: 14.760 | J45: 71 | K45: 0.033 | L45: 0 | M45: - | N45: 0.330 | O45: 6.000 | P45: 19.500 | Q45: 4.200 | R45: 0.330
A46: Итого: | G46: =SUM(G43:G45) -> 6.080 | H46: 7.240 | I46: 57.460 | J46: 320.000 | K46: 0.333 | L46: 3.750 | M46: 41.000 | N46: 0.923 | O46: 43.322 | P46: 207.553 | Q46: 115.250 | R46: 4.028
A47: 2 день
A48: КАША РИСОВАЯ ВЯЗКАЯ | F48: 150 | G48: 3.650 | H48: 5.370 | I48: 36.680 | J48: 210 | K48: 0.020 | L48: 0.000 | M48: 0.027 | N48: 0.000 | O48: 1.360 | P48: 60.900 | Q48: 16.300 | R48: 0.520
A49: ЧАЙ С САХАРОМ | F49: 200/15 | G49: 0.200 | I49: 13.70 | J49: 56 | K49: 0.008 | L49: 3.750 | M49: - | N49: 0.075 | O49: 9.970 | P49: 7.500 | Q49: 6.500 | R49: 0.197
A50: ХЛЕБ БЕЛЫЙ 1 сорт | F50: 30 | G50: 2.280 | H50: 0.240 | I50: 14.760 | J50: 71 | K50: 0.033 | L50: 1.600 | M50: 0.03 | N50: 0.000 | O50: 6.000 | P50: 19.500 | Q50: 4.200 | R50: 0.330
A51: Итого: | G51: =SUM(G48:G50) -> 6.13 | H51: 5.61 | I51: 65.14 | J51: 336.70 | K51: 0.06 | L51: 5.35 | M51: 0.06 | N51: 0.08 | O51: 17.33 | P51: 87.90 | Q51: 27.00 | R51: 1.05
A52: 3 день
A53: МАКАРОНЫ ОТВАРНЫЕ | F53: 150 | G53: 9.270 | H53: 5.320 | I53: 36.870 | J53: 232 | K53: 0.000 | L53: 0.000 | M53: 0 | N53: 0.000 | O53: 0.000 | P53: 0.000 | Q53: 0.000 | R53: 0.000
A54: ЧАЙ С САХАРОМ | F54: 200/15 | G54: 0.200 | I54: 13.70 | J54: 56 | K54: 0.008 | L54: 3.750 | M54: - | N54: 0.075 | O54: 9.970 | P54: 7.500 | Q54: 6.500 | R54: 0.197
A55: ХЛЕБ БЕЛЫЙ 1 сорт | F55: 30 | G55: 2.280 | H55: 0.240 | I55: 14.760 | J55: 71 | K55: 0.033 | L55: 1.600 | M55: 0.03 | N55: 0.000 | O55: 6.000 | P55: 19.500 | Q55: 4.200 | R55: 0.330
A56: Итого: | G56: =SUM(G53:G55) -> 11.75 | H56: 5.56 | I56: 65.33 | J56: 358.78 | K56: 0.04 | L56: 5.35 | M56: 0.03 | N56: 0.08 | O56: 15.97 | P56: 27.00 | Q56: 10.70 | R56: 0.53
A57: 4 день
A58: КАША ПШЕННАЯ ВЯЗКАЯ | F58: 150 | G58: 5.652 | H58: 4.469 | I58: 28.000 | J58: 175 | K58: 0.087 | L58: - | M58: 21.000 | N58: 0.818 | O58: 16.470 | P58: 47.070 | Q58: 8.490 | R58: 0.870
A59: ЧАЙ С САХАРОМ | F59: 200/15 | G59: 0.200 | I59: 13.70 | J59: 56 | K59: 0.008 | L59: 3.750 | M59: - | N59: 0.075 | O59: 9.970 | P59: 7.500 | Q59: 6.500 | R59: 0.197
A60: ХЛЕБ БЕЛЫЙ 1 сорт | F60: 30 | G60: 2.280 | H60: 0.240 | I60: 14.760 | J60: 71 | K60: 0.033 | L60: 1.600 | M60: 0.03 | N60: 0.000 | O60: 6.000 | P60: 19.500 | Q60: 4.200 | R60: 0.330
A61: Итого: | G61: =SUM(G57:G60) -> 8.132 | H61: 4.709 | I61: 56.460 | J61: 302.000 | K61: 0.128 | L61: 5.350 | M61: 21.030 | N61: 0.893 | O61: 32.440 | P61: 74.070 | Q61: 19.190 | R61: 1.397
A62: 5 день
A63: КАША ЯЧНЕВАЯ ВЯЗКАЯ | F63: 150 | G63: 3.650 | H63: 5.370 | I63: 36.680 | J63: 210 | K63: 0.020 | L63: 0.000 | M63: 0.027 | N63: 0.000 | O63: 1.360 | P63: 60.900 | Q63: 16.300 | R63: 0.520
A64: ЧАЙ С САХАРОМ | F64: 200/15 | G64: 0.200 | I64: 13.70 | J64: 56 | K64: 0.008 | L64: 3.750 | M64: - | N64: 0.075 | O64: 9.970 | P64: 7.500 | Q64: 6.500 | R64: 0.197
A65: ХЛЕБ БЕЛЫЙ 1 сорт | F65: 30 | G65: 2.280 | H65: 0.240 | I65: 14.760 | J65: 71 | K65: 0.033 | L65: 1.600 | M65: 0.03 | N65: 0.000 | O65: 6.000 | P65: 19.500 | Q65: 4.200 | R65: 0.330
A66: Итого: | G66: =SUM(G63:G65) -> 6.130 | H66: 5.610 | I66: 65.140 | J66: 336.700 | K66: 0.061 | L66: 5.350 | M66: 0.057 | N66: 0.075 | O66: 17.330 | P66: 87.900 | Q66: 27.000 | R66: 1.047
A67: 6 день
A68: ПИРОЖОК С ПОВИДЛОМ | F68: 100 | G68: 5.780 | H68: 2.340 | I68: 57.560 | J68: 274 | K68: 0.100 | L68: 0.06 | M68: 0.000 | N68: 0.000 | O68: 18.800 | P68: 59.200 | Q68: 23.800 | R68: 1.100
A69: ЧАЙ С САХАРОМ | F69: 200/15 | G69: 0.200 | I69: 13.70 | J69: 56 | K69: 0.008 | L69: 3.750 | M69: - | N69: 0.075 | O69: 9.970 | P69: 7.500 | Q69: 6.500 | R69: 0.197
A70: Итого: | G70: =SUM(G68:G69) -> 5.980 | H70: 2.340 | I70: 71.260 | J70: 330.000 | K70: 0.108 | L70: 3.810 | M70: 0.000 | N70: 0.075 | O70: 28.770 | P70: 66.700 | Q70: 30.300 | R70: 1.297

Sheet гпд
B1: Примерное двухнедельное меню для учащихся с 7 до 11 лет в общеобразовательных организациях Агрызского района в 2020 - 2021 уч.году
A5: Наименование блюд | F5: Выход | G5: Белки, г | H5: Жиры, г | I5: Углеводы, г | J5: Калорийность, ккал | K5: Витамин B1, мг | L5: Витамин С, мг | M5: Витамин А, мг | N5: Витамин Е, мг | O5: Ca, мг | P5: P, мг | Q5: Mg, мг | R5: Fe, мг
A6: 1-ая неделя
A7: 1 день
A8: ЩИ ИЗ СВЕЖЕЙ КАПУСТЫ СО СМЕТАНОЙ | F8: 250/10 | G8: 1.740 | H8: 4.900 | I8: 8.480 | J8: 85 | K8: 0.060 | L8: 18.46 | M8: 0.000 | N8: 0.000 | O8: 43.300 | P8: 47.000 | Q8: 14.000 | R8: 0.800
A9: ЧАЙ С САХАРОМ | F9: 200/15 | G9: 0.200 | I9: 13.70 | J9: 56 | K9: 0.008 | L9: 3.750 | M9: - | N9: 0.075 | O9: 9.970 | P9: 7.500 | Q9: 6.500 | R9: 0.197
A10: ХЛЕБ БЕЛЫЙ 1 сорт | F10: 30 | G10: 2.280 | H10: 0.240 | I10: 14.760 | J10: 71 | K10: 0.033 | L10: 0 | M10: - | N10: 0.330 | O10: 6.000 | P10: 19.500 | Q10: 4.200 | R10: 0.330
A11: Итого: | G11: =SUM(G8:G10) -> 4.220 | H11: 5.140 | I11: 36.940 | J11: 211.750 | K11: 0.101 | L11: 22.210 | M11: 0.000 | N11: 0.405 | O11: 59.270 | P11: 74.000 | Q11: 24.700 | R11: 1.327
A12: 2 день
A13: СУП КАРТОФЕЛЬНЫЙ С БОБОВЫМИ | F13: 250 | G13: 5.120 | H13: 5.350 | I13: 16.140 | J13: 133 | K13: 0.160 | L13: 5.810 | M13: 0 | N13: 0.000 | O13: 50.280 | P13: 137.970 | Q13: 38.300 | R13: 1.800
A14: ЧАЙ С САХАРОМ | F14: 200/15 | G14: 0.200 | I14: 13.70 | J14: 56 | K14: 0.008 | L14: 3.750 | M14: - | N14: 0.075 | O14: 9.970 | P14: 7.500 | Q14: 6.500 | R14: 0.197
A15: ХЛЕБ БЕЛЫЙ 1 сорт | F15: 30 | G15: 2.280 | H15: 0.240 | I15: 14.760 | J15: 71 | K15: 0.033 | L15: - | M15: - | N15: 0.330 | O15: 6.000 | P15: 19.500 | Q15: 4.200 | R15: 0.330
A16: Итого: | G16: =SUM(G13:G15) -> 7.60 | H16: 5.59 | I16: 44.60 | J16: 260.25 | K16: 0.20 | L16: 9.56 | M16: 0.00 | N16: 0.41 | O16: 66.25 | P16: 164.97 | Q16: 49.00 | R16: 2.33
A17: 3 день
A18: РАССОЛЬНИК Ленинградский со сметаной | F18: 250/ 10 | G18: 2.100 | H18: 5.100 | I18: 16.590 | J18: 121 | K18: 0.090 | L18: 7.5 | M18: 0.000 | N18: 0.000 | O18: 26.450 | P18: 71.950 | Q18: 25.900 | R18: 0.970
A19: ЧАЙ С САХАРОМ | F19: 200/15 | G19: 0.200 | I19: 13.70 | J19: 56 | K19: 0.008 | L19: 3.750 | M19: - | N19: 0.075 | O19: 9.970 | P19: 7.500 | Q19: 6.500 | R19: 0.197
A20: ХЛЕБ БЕЛЫЙ 1 сорт | F20: 30 | G20: 2.280 | H20: 0.240 | I20: 14.760 | J20: 71 | K20: 0.033 | L20: - | M20: - | N20: 0.330 | O20: 6.000 | P20: 19.500 | Q20: 4.200 | R20: 0.330
A21: Итого: | G21: =SUM(G18:G20) -> 4.580 | H21: 5.340 | I21: 45.050 | J21: 247.750 | K21: 0.131 | L21: 11.250 | M21: 0.000 | N21: 0.405 | O21: 42.420 | P21: 98.950 | Q21: 36.600 | R21: 1.497
A22: 4 день
A23: СУП КАРТОФЕЛЬНЫЙ С КРУПОЙ | F23: 250 | G23: 2.670 | H23: 2.800 | I23: 17.140 | J23: 105 | K23: 0.120 | L23: 8.25 | M23: 0.000 | N23: 0.000 | O23: 26.100 | P23: 82.500 | Q23: 28.500 | R23: 1.300
A24: ЧАЙ С САХАРОМ | F24: 200/15 | G24: 0.200 | I24: 13.70 | J24: 56 | K24: 0.008 | L24: 3.750 | M24: - | N24: 0.075 | O24: 9.970 | P24: 7.500 | Q24: 6.500 | R24: 0.197
A25: ХЛЕБ БЕЛЫЙ 1 сорт | F25: 30 | G25: 2.280 | H25: 0.240 | I25: 14.760 | J25: 71 | K25: 0.033 | L25: 0 | M25: - | N25: 0.330 | O25: 6.000 | P25: 19.500 | Q25: 4.200 | R25: 0.330
A26: Итого: | G26: =SUM(G23:G25) -> 5.150 | H26: 3.040 | I26: 45.600 | J26: 231.500 | K26: 0.161 | L26: 12.000 | M26: 0.000 | N26: 0.405 | O26: 42.070 | P26: 109.500 | Q26: 39.200 | R26: 1.827
A27: 5 день
A28: БОРЩ С КАРТОФЕЛЕМ И КАПУСТОЙ | F28: 250/ 10 | G28: 1.820 | H28: 4.910 | I28: 12.740 | J28: 103 | K28: 0.050 | L28: 8.25 | M28: 0.000 | N28: 0.000 | O28: 26.100 | P28: 82.650 | Q28: 28.500 | R28: 1.300
A29: ЧАЙ С САХАРОМ | F29: 200/15 | G29: 0.200 | I29: 13.70 | J29: 56 | K29: 0.008 | L29: 3.750 | M29: - | N29: 0.075 | O29: 9.970 | P29: 7.500 | Q29: 6.500 | R29: 0.197
A30: ХЛЕБ БЕЛЫЙ 1 сорт | F30: 30 | G30: 2.280 | H30: 0.240 | I30: 14.760 | J30: 71 | K30: 0.033 | L30: - | M30: - | N30: 0.330 | O30: 6.000 | P30: 19.500 | Q30: 4.200 | R30: 0.330
A31: Итого: | G31: =SUM(G28:G30) -> 4.300 | H31: 5.150 | I31: 41.200 | J31: 229.500 | K31: 0.091 | L31: 12.000 | M31: 0.000 | N31: 0.405 | O31: 42.070 | P31: 109.650 | Q31: 39.200 | R31: 1.827
A36: Наименование блюд | F36: Выход | G36: Белки, г | H36: Жиры, г | I36: Углеводы, г | J36: Калорийность, ккал | K36: Витамин B1, мг | L36: Витамин С, мг | M36: Витамин А, мг | N36: Витамин Е, мг | O36: Ca, мг | P36: P, мг | Q36: Mg, мг | R36: Fe, мг
A37: 2-ая неделя
A38: 1 день
A39: РАССОЛЬНИК Ленинградский со сметаной | F39: 250/ 10 | G39: 2.100 | H39: 5.100 | I39: 16.590 | J39: 121 | K39: 0.090 | L39: 7.5 | M39: 0.000 | N39: 0.000 | O39: 26.450 | P39: 71.950 | Q39: 25.900 | R39: 0.970
A40: ЧАЙ С САХАРОМ | F40: 200/15 | G40: 0.200 | I40: 13.70 | J40: 56 | K40: 0.008 | L40: 3.750 | M40: - | N40: 0.075 | O40: 9.970 | P40: 7.500 | Q40: 6.500 | R40: 0.197
A41: ХЛЕБ БЕЛЫЙ 1 сорт | F41: 30 | G41: 2.280 | H41: 0.240 | I41: 14.760 | J41: 71 | K41: 0.033 | L41: 0 | M41: - | N41: 0.330 | O41: 6.000 | P41: 19.500 | Q41: 4.200 | R41: 0.330
A42: Итого: | G42: =SUM(G39:G41) -> 4.580 | H42: 5.340 | I42: 45.050 | J42: 247.750 | K42: 0.131 | L42: 11.250 | M42: 0.000 | N42: 0.405 | O42: 42.420 | P42: 98.950 | Q42: 36.600 | R42: 1.497
A43: 2 день
A44: СУП КАРТОФЕЛЬНЫЙ С МАКАРОН ИЗД. | F44: 250 | G44: 2.700 | H44: 2.840 | I44: 17.140 | J44: 105 | K44: 0.110 | L44: 8.250 | M44: 0 | N44: 0.000 | O44: 24.600 | P44: 66.650 | Q44: 27.000 | R44: 1.080
A45: ЧАЙ С САХАРОМ | F45: 200/15 | G45: 0.200 | I45: 13.70 | J45: 56 | K45: 0.008 | L45: 3.750 | M45: - | N45: 0.075 | O45: 9.970 | P45: 7.500 | Q45: 6.500 | R45: 0.197
A46: ХЛЕБ БЕЛЫЙ 1 сорт | F46: 30 | G46: 2.280 | H46: 0.240 | I46: 14.760 | J46: 71 | K46: 0.033 | L46: 1.600 | M46: 0.03 | N46: 0.000 | O46: 6.000 | P46: 19.500 | Q46: 4.200 | R46: 0.330
A47: Итого: | G47: =SUM(G44:G46) -> 5.18 | H47: 3.08 | I47: 45.60 | J47: 231.75 | K47: 0.15 | L47: 13.60 | M47: 0.03 | N47: 0.08 | O47: 40.57 | P47: 93.65 | Q47: 37.70 | R47: 1.61
A48: 3 день
A49: БОРЩ С КАРТОФЕЛЕМ И КАПУСТОЙ | F49: 250/ 10 | G49: 1.820 | H49: 4.910 | I49: 12.740 | J49: 103 | K49: 0.050 | L49: 8.25 | M49: 0.000 | N49: 0.000 | O49: 26.100 | P49: 82.650 | Q49: 28.500 | R49: 1.300
A50: ЧАЙ С САХАРОМ | F50: 200/15 | G50: 0.200 | I50: 13.70 | J50: 56 | K50: 0.008 | L50: 3.750 | M50: - | N50: 0.075 | O50: 9.970 | P50: 7.500 | Q50: 6.500 | R50: 0.197
A51: ХЛЕБ БЕЛЫЙ 1 сорт | F51: 30 | G51: 2.280 | H51: 0.240 | I51: 14.760 | J51: 71 | K51: 0.033 | L51: 1.600 | M51: 0.03 | N51: 0.000 | O51: 6.000 | P51: 19.500 | Q51: 4.200 | R51: 0.330
A52: Итого: | G52: =SUM(G49:G51) -> 4.30 | H52: 5.15 | I52: 41.20 | J52: 229.50 | K52: 0.09 | L52: 13.60 | M52: 0.03 | N52: 0.08 | O52: 42.07 | P52: 109.65 | Q52: 39.20 | R52: 1.83
A53: 4 день
A54: ЩИ ИЗ СВЕЖЕЙ КАПУСТЫ СО СМЕТАНОЙ | F54: 250/10 | G54: 1.740 | H54: 4.900 | I54: 8.480 | J54: 85 | K54: 0.060 | L54: 18.46 | M54: 0.000 | N54: 0.000 | O54: 43.300 | P54: 47.000 | Q54: 14.000 | R54: 0.800
A55: ЧАЙ С САХАРОМ | F55: 200/15 | G55: 0.200 | I55: 13.70 | J55: 56 | K55: 0.008 | L55: 3.750 | M55: - | N55: 0.075 | O55: 9.970 | P55: 7.500 | Q55: 6.500 | R55: 0.197
A56: ХЛЕБ БЕЛЫЙ 1 сорт | F56: 30 | G56: 2.280 | H56: 0.240 | I56: 14.760 | J56: 71 | K56: 0.033 | L56: 1.600 | M56: 0.03 | N56: 0.000 | O56: 6.000 | P56: 19.500 | Q56: 4.200 | R56: 0.330
A57: Итого: | G57: =SUM(G53:G56) -> 4.220 | H57: 5.140 | I57: 36.940 | J57: 211.750 | K57: 0.101 | L57: 23.810 | M57: 0.030 | N57: 0.075 | O57: 59.270 | P57: 74.000 | Q57: 24.700 | R57: 1.327
A58: 5 день
A59: СУП КАРТОФЕЛЬНЫЙ С БОБОВЫМИ | F59: 250 | G59: 5.120 | H59: 5.350 | I59: 16.140 | J59: 133 | K59: 0.160 | L59: 5.810 | M59: 0 | N59: 0.000 | O59: 50.280 | P59: 137.970 | Q59: 38.300 | R59: 1.800
A60: ЧАЙ С САХАРОМ | F60: 200/15 | G60: 0.200 | I60: 13.70 | J60: 56 | K60: 0.008 | L60: 3.750 | M60: - | N60: 0.075 | O60: 9.970 | P60: 7.500 | Q60: 6.500 | R60: 0.197
A61: ХЛЕБ БЕЛЫЙ 1 сорт | F61: 30 | G61: 2.280 | H61: 0.240 | I61: 14.760 | J61: 71 | K61: 0.033 | L61: 1.600 | M61: 0.03 | N61: 0.000 | O61: 6.000 | P61: 19.500 | Q61: 4.200 | R61: 0.330
A62: Итого: | G62: =SUM(G59:G61) -> 7.600 | H62: 5.590 | I62: 44.600 | J62: 260.250 | K62: 0.201 | L62: 11.160 | M62: 0.030 | N62: 0.075 | O62: 66.250 | P62: 164.970 | Q62: 49.000 | R62: 2.327
